bitfinex-derivatives/quotes_BTCF0:USTF0_20241104
["timestamp","ask_amount","ask_price","bid_price","bid_amount"]
[1730753885930,0.004,67487.0,67472.0,0.56308]
[1730753885931,0.0104,67490.0,67481.0,0.074143]
[1730753886130,0.0104,67490.0,67489.0,0.074134]
[1730753886131,0.3,67490.0,67489.0,0.074134]
[1730753887237,0.374133,67490.0,67489.0,0.074134]
[1730753888330,0.374133,67490.0,67475.0,0.00222301]
[1730753888331,0.75852,67490.0,67475.0,0.00222301]
[1730753888635,0.3608,67485.0,67475.0,0.00222301]
[1730753889138,0.6608,67485.0,67475.0,0.00222301]
[1730753889326,0.6608,67485.0,67484.0,0.074139]
[1730753890331,0.3,67485.0,67484.0,0.074139]
[1730753891332,0.074143,67481.0,67480.0,0.074143]
[1730753891533,0.47924,67481.0,67450.0,0.08832869]
[1730753891735,0.47924,67481.0,67444.0,0.0069]
[1730753891736,0.074171,67455.0,67452.0,0.074174]
[1730753892040,0.3608,67457.0,67455.0,0.074171]
[1730753892041,0.43497,67457.0,67455.0,0.074171]
[1730753892240,0.73497,67457.0,67455.0,0.074171]
[1730753892535,0.73497,67457.0,67456.0,0.07417]
[1730753892536,0.6608,67457.0,67456.0,0.07417]
[1730753893131,0.3618,67457.0,67456.0,0.07417]
[1730753893437,0.002,67457.0,67456.0,0.07417]
[1730753894430,0.002,67457.0,67455.0,0.01]
[1730753894629,0.07417,67456.0,67455.0,0.01]
[1730753894836,0.07417,67456.0,67455.0,0.084171]
[1730753895035,0.37417,67456.0,67455.0,0.084171]
[1730753895231,0.37417,67456.0,67455.0,0.074171]
[1730753895937,0.301,67456.0,67449.0,0.3608]
[1730753896134,0.074174,67452.0,67448.0,0.074179]
[1730753896444,0.434974,67452.0,67450.0,0.074177]
[1730753896645,0.734974,67452.0,67450.0,0.074177]
[1730753897445,1.179734,67452.0,67438.0,0.26669452]
[1730753897633,0.734974,67452.0,67448.0,0.074179]
[1730753897837,0.734974,67452.0,67449.0,0.074178]
[1730753898340,0.734974,67452.0,67451.0,0.01622373]
[1730753898742,0.36302503,67469.0,67468.0,0.074157]
[1730753898943,0.3608,67478.0,67477.0,0.074147]
[1730753899243,0.3608,67478.0,67477.0,0.26665252]
[1730753899435,0.6608,67478.0,67477.0,0.074147]
[1730753899841,0.6608,67478.0,67472.0,1.5008]
[1730753899842,0.3608,67478.0,67472.0,1.5008]
[1730753900043,0.07415,67476.0,67475.0,0.074149]
[1730753900440,0.37415,67476.0,67475.0,0.074149]
[1730753901342,0.074151,67473.0,67472.0,0.00076]
[1730753901551,0.074152,67472.0,67471.0,0.074153]
[1730753902038,0.374152,67472.0,67471.0,0.074153]
[1730753902546,0.074158,67468.0,67467.0,0.074158]
[1730753902850,0.074166,67460.0,67451.0,0.07639873]
[1730753903046,0.3608,67458.0,67451.0,0.07639873]
[1730753903246,0.434968,67458.0,67457.0,0.074169]
[1730753903450,0.734968,67458.0,67457.0,0.074169]
[1730753905251,0.738968,67458.0,67457.0,0.074169]
[1730753905460,0.742968,67458.0,67457.0,0.074169]
[1730753905947,0.740968,67458.0,67457.0,0.074169]
[1730753906251,0.6728,67458.0,67457.0,0.075169]
[1730753906549,0.3728,67458.0,67457.0,0.26767452]
[1730753907354,0.3668,67458.0,67457.0,0.26767452]
[1730753907545,0.440968,67458.0,67457.0,0.26667452]
[1730753907745,0.440968,67458.0,67457.0,0.074169]
[1730753907746,0.740968,67458.0,67457.0,0.074169]
[1730753908047,0.738968,67458.0,67457.0,0.074169]
[1730753908241,0.735968,67458.0,67457.0,0.074169]
[1730753908446,0.737968,67458.0,67457.0,0.074169]
[1730753908641,0.736968,67458.0,67457.0,0.074169]
[1730753908847,0.739968,67458.0,67457.0,0.074169]
[1730753909554,0.3638,67458.0,67457.0,0.074169]
[1730753909848,0.3668,67458.0,67457.0,0.074169]
[1730753910048,0.3668,67458.0,67452.0,0.074173]
[1730753910049,0.074174,67453.0,67452.0,0.074173]
[1730753910450,0.374174,67453.0,67452.0,0.074173]
[1730753910842,0.374174,67453.0,67451.0,0.00222373]
[1730753910843,0.074174,67452.0,67451.0,0.00222373]
[1730753911045,0.3,67452.0,67451.0,0.26890525]
[1730753911651,0.074173,67454.0,67453.0,0.074171]
[1730753912052,0.374173,67454.0,67453.0,0.074171]
[1730753912945,0.3,67454.0,67453.0,0.074173]
[1730753913140,0.3608,67457.0,67453.0,0.074173]
[1730753913345,0.6608,67457.0,67456.0,0.07417]
[1730753914055,0.79995853,67457.0,67456.0,0.07417]
[1730753914248,0.76362731,67457.0,67456.0,0.07417]
[1730753914450,0.76462731,67457.0,67456.0,0.07417]
[1730753914654,0.80095862,67457.0,67456.0,0.07417]
[1730753914848,0.76462731,67457.0,67456.0,0.07417]
[1730753915157,0.76462731,67457.0,67453.0,0.074173]
[1730753915158,0.074174,67454.0,67453.0,0.074173]
[1730753915459,0.10283231,67454.0,67453.0,0.074173]
[1730753915849,0.074174,67452.0,67451.0,0.26890325]
[1730753916052,0.074174,67452.0,67451.0,0.00222373]
[1730753916249,0.074174,67452.0,67451.0,0.07639973]
[1730753916250,0.374174,67452.0,67451.0,0.07639973]
[1730753916449,0.40283473,67452.0,67451.0,0.07639973]
[1730753916949,0.02866073,67452.0,67451.0,0.26890525]
[1730753917155,0.02866073,67452.0,67451.0,0.00322373]
[1730753917156,0.10283473,67452.0,67451.0,0.00322373]
[1730753918454,0.10283473,67452.0,67451.0,1.50422373]
[1730753918851,0.10283473,67452.0,67451.0,1.57639973]
[1730753919051,0.10283473,67452.0,67451.0,1.57939973]
[1730753919653,0.10283473,67452.0,67451.0,1.57739973]
[1730753919952,0.10283473,67452.0,67451.0,1.57839973]
[1730753921559,0.02866073,67452.0,67451.0,1.57739973]
[1730753921762,0.03633177,67452.0,67451.0,1.57839973]
[1730753921949,0.02902337,67452.0,67451.0,1.57839973]
[1730753922154,0.3608,67457.0,67456.0,0.07417]
[1730753923568,0.437969,67457.0,67456.0,0.2024503]
[1730753924664,0.438969,67457.0,67456.0,0.2024503]
[1730753925269,0.738969,67457.0,67451.0,0.16230403]
[1730753925460,0.074174,67454.0,67453.0,0.074173]
[1730753925652,0.074174,67454.0,67451.0,0.13050403]
[1730753925862,0.074174,67454.0,67438.0,0.1282803]
[1730753925863,0.074187,67441.0,67438.0,0.1282803]
[1730753926075,0.3608,67441.0,67440.0,0.16791897]
[1730753926363,0.434987,67441.0,67440.0,0.16791897]
[1730753927973,0.435987,67441.0,67440.0,0.18191897]
[1730753928570,0.436987,67441.0,67440.0,0.18291897]
[1730753928766,0.436987,67441.0,67440.0,0.18091897]
[1730753929162,0.46465095,67441.0,67440.0,0.10573097]
[1730753929363,0.46565095,67441.0,67440.0,0.10673097]
[1730753929766,0.76565095,67441.0,67440.0,0.10673097]
[1730753930167,0.80199469,67441.0,67440.0,0.10673097]
[1730753930369,0.84754991,67441.0,67440.0,0.10673097]
[1730753930671,0.80199469,67441.0,67440.0,0.10673097]
[1730753930972,0.80199926,67441.0,67440.0,0.10673097]
[1730753933772,0.80199926,67441.0,67440.0,0.013]
[1730753934373,0.76565533,67441.0,67440.0,0.087188]
[1730753934670,0.76565533,67441.0,67440.0,0.013]
[1730753934872,0.39146833,67441.0,67440.0,0.087188]
[1730753935494,0.3628,67441.0,67440.0,0.087188]
[1730753936866,0.436987,67441.0,67440.0,0.087188]
[1730753939573,0.436987,67441.0,67440.0,0.013]
[1730753939773,0.8652673,67441.0,67440.0,0.013]
[1730753940080,0.736987,67441.0,67440.0,0.013]
[1730753942581,0.8652673,67441.0,67440.0,0.013]
[1730753942880,0.736987,67441.0,67440.0,0.013]
[1730753944175,0.3628,67441.0,67440.0,0.087188]
[1730753944872,0.3628,67441.0,67440.0,1.587188]
[1730753945485,0.436987,67441.0,67440.0,1.587188]
[1730753945882,0.736987,67441.0,67440.0,1.513]
[1730753946277,0.736987,67441.0,67440.0,0.013]
[1730753946588,0.3628,67441.0,67440.0,0.087188]
[1730753946975,0.736987,67441.0,67440.0,0.013]
[1730753947178,0.3608,67447.0,67440.0,0.013]
[1730753947179,0.3608,67447.0,67440.0,0.447988]
[1730753947482,0.43498,67447.0,67446.0,0.2024613]
[1730753947686,0.43498,67447.0,67446.0,0.074181]
[1730753948083,0.73498,67447.0,67441.0,1.50076]
[1730753948392,0.73498,67447.0,67441.0,1.5]
[1730753948393,0.074185,67442.0,67441.0,1.5]
[1730753948976,0.074187,67441.0,67440.0,0.001]
[1730753949482,0.074187,67441.0,67440.0,0.2034683]
[1730753949885,0.074187,67441.0,67440.0,0.001]
[1730753950279,0.374187,67441.0,67440.0,0.001]
[1730753950493,0.374187,67441.0,67429.0,0.2891803]
[1730753950494,0.374187,67441.0,67434.0,0.074193]
[1730753950685,0.074193,67435.0,67434.0,0.074193]
[1730753950881,0.3608,67438.0,67434.0,0.1282803]
[1730753951087,0.3608,67438.0,67433.0,0.074195]
[1730753951088,0.074197,67434.0,67433.0,0.074195]
[1730753951285,0.074198,67432.0,67431.0,0.2024763]
[1730753951487,0.074198,67432.0,67429.0,0.09089061]
[1730753951488,0.074199,67430.0,67429.0,0.13338961]
[1730753951683,0.074195,67435.0,67434.0,0.074194]
[1730753951889,0.074197,67433.0,67432.0,0.074195]
[1730753952088,0.6608,67438.0,67430.0,0.1282803]
[1730753952089,0.6618,67438.0,67430.0,0.1282803]
[1730753952290,0.074198,67431.0,67430.0,0.1282803]
[1730753952485,0.074198,67431.0,67429.0,0.05919061]
[1730753952486,0.074199,67430.0,67429.0,0.05919061]
[1730753952689,0.075199,67430.0,67429.0,0.06219061]
[1730753953103,0.075199,67430.0,67429.0,0.13639061]
[1730753953395,0.075199,67430.0,67429.0,0.06219061]
[1730753953599,0.375199,67430.0,67429.0,0.06219061]
[1730753953799,0.075199,67430.0,67429.0,0.19047091]
[1730753954001,0.075199,67430.0,67429.0,0.26467091]
[1730753954395,0.075199,67430.0,67429.0,0.06219061]
[1730753954806,0.074199,67430.0,67429.0,0.05919061]
[1730753955001,0.374199,67430.0,67429.0,0.05919061]
[1730753955192,0.437999,67430.0,67429.0,0.05919061]
[1730753955499,0.437999,67430.0,67429.0,0.06119061]
[1730753955700,0.437999,67430.0,67429.0,0.06319061]
[1730753955901,0.54858266,67430.0,67429.0,0.004]
[1730753956910,0.437999,67430.0,67429.0,0.004]
[1730753957397,0.50302225,67430.0,67429.0,0.004]
[1730753957593,0.074212,67418.0,67404.0,0.3608]
[1730753957799,0.074212,67418.0,67393.0,0.0069]
[1730753957800,0.074231,67402.0,67398.0,0.032]
[1730753958007,0.074231,67402.0,67382.0,0.0069]
[1730753958008,0.074246,67388.0,67387.0,0.074246]
[1730753958206,0.07425,67384.0,67374.0,0.0236229]
[1730753958404,0.07425,67384.0,67376.0,0.1282803]
[1730753958405,0.074249,67384.0,67376.0,0.1282803]
[1730753958619,0.074249,67384.0,67382.0,0.074251]
[1730753958801,0.3608,67388.0,67382.0,0.074251]
[1730753959106,0.07425,67384.0,67382.0,0.074251]
[1730753959297,0.07425,67384.0,67377.0,0.074257]
[1730753959298,0.37425,67384.0,67377.0,0.074257]
[1730753959500,0.074252,67382.0,67380.0,0.074254]
[1730753959702,0.3618,67388.0,67377.0,0.19265079]
[1730753959902,0.0104,67397.0,67384.0,0.3608]
[1730753960103,0.0104,67410.0,67396.0,0.3608]
[1730753960309,0.0104,67410.0,67404.0,0.19265079]
[1730753960514,0.7216,67409.0,67395.0,0.13724]
[1730753960720,0.4241,67409.0,67392.0,0.19265079]
[1730753960908,0.074224,67407.0,67406.0,0.074224]
[1730753961106,0.3608,67409.0,67399.0,0.3608]
[1730753961409,0.00222728,67413.0,67406.0,0.19265079]
[1730753961612,0.07644428,67413.0,67412.0,0.074218]
[1730753961801,0.074222,67409.0,67408.0,0.074222]
[1730753962110,0.076222,67409.0,67408.0,0.074222]
[1730753962516,0.005,67409.0,67394.0,0.19265079]
[1730753962712,0.074233,67401.0,67400.0,0.074231]
[1730753962905,0.3608,67405.0,67395.0,0.0302]
[1730753963101,0.3608,67398.0,67390.0,0.00222576]
[1730753963412,0.074242,67391.0,67390.0,0.00222576]
[1730753963814,0.374242,67391.0,67390.0,0.00222576]
[1730753964208,0.405742,67391.0,67390.0,0.00222576]
[1730753964405,0.405742,67391.0,67390.0,0.07846876]
[1730753964614,0.405742,67391.0,67390.0,0.00422576]
[1730753964905,0.405742,67391.0,67390.0,0.00222576]
[1730753965111,0.406742,67391.0,67390.0,0.00422576]
[1730753965514,0.407742,67391.0,67390.0,0.01322576]
[1730753965906,0.407742,67391.0,67390.0,0.08746876]
[1730753965907,0.002,67391.0,67390.0,0.08746876]
[1730753966103,0.076242,67391.0,67390.0,0.08746876]
[1730753967315,0.376242,67391.0,67390.0,0.01322576]
[1730753969112,0.376242,67391.0,67390.0,0.08746876]
[1730753969313,0.302,67391.0,67390.0,0.01322576]
[1730753969618,0.376242,67391.0,67390.0,0.01322576]
[1730753970411,0.002,67391.0,67390.0,0.08746876]
[1730753970611,0.076242,67391.0,67390.0,0.08746876]
[1730753970816,0.002,67391.0,67390.0,0.08746876]
[1730753971002,0.002,67391.0,67390.0,0.01322576]
[1730753971003,0.737042,67391.0,67390.0,0.01322576]
[1730753972512,0.737042,67391.0,67373.0,0.05930769]
[1730753972513,1.10796,67391.0,67373.0,0.05930769]
[1730753972714,0.3608,67382.0,67381.0,0.19265079]
[1730753973219,0.3608,67382.0,67381.0,0.26690379]
[1730753973421,0.3608,67382.0,67375.0,0.05930769]
[1730753973422,0.3608,67382.0,67378.0,0.13356369]
[1730753973619,0.6608,67382.0,67375.0,0.05930769]
[1730753973915,0.074259,67375.0,67374.0,0.13356769]
[1730753974122,0.074253,67381.0,67374.0,0.07426]
[1730753974332,0.07426,67374.0,67373.0,0.014]
[1730753974511,0.3608,67375.0,67373.0,0.18178513]
[1730753974717,0.07426,67374.0,67368.0,0.09118708]
[1730753974911,0.074265,67370.0,67369.0,0.19636766]
[1730753975220,0.074263,67373.0,67372.0,0.074261]
[1730753975415,0.3608,67375.0,67374.0,0.07426]
[1730753975607,0.3608,67375.0,67374.0,0.18179353]
[1730753975917,0.735059,67375.0,67374.0,0.10753353]
[1730753976220,0.735059,67375.0,67373.0,0.08701]
[1730753976221,0.07426,67374.0,67373.0,0.08701]
[1730753976522,0.07526,67374.0,67373.0,0.12042112]
[1730753976716,0.001,67374.0,67373.0,0.013]
[1730753976908,0.001,67374.0,67373.0,0.12040057]
[1730753977115,0.07426,67374.0,67373.0,0.12040057]
[1730753977316,0.37426,67374.0,67373.0,0.12040057]
[1730753977720,0.37426,67374.0,67373.0,0.013]
[1730753977923,0.37526,67374.0,67372.0,0.07397182]
[1730753978127,0.074261,67373.0,67372.0,0.07397182]
[1730753978313,0.074263,67372.0,67369.0,0.0739764]
[1730753978619,0.074266,67369.0,67368.0,0.00222662]
[1730753978924,0.435066,67369.0,67368.0,0.00222662]
[1730753979107,0.735066,67369.0,67368.0,0.00222662]
[1730753980123,0.736066,67369.0,67368.0,0.0613658]
[1730753980426,0.736066,67369.0,67368.0,0.00222662]
[1730753980814,0.737066,67369.0,67368.0,0.06734688]
[1730753981011,0.737066,67369.0,67368.0,0.00822662]
[1730753981919,0.737066,67369.0,67368.0,0.06734688]
[1730753982115,0.3628,67369.0,67368.0,0.20087741]
[1730753982313,0.3608,67375.0,67374.0,0.07426]
[1730753982522,0.435059,67375.0,67374.0,0.23568018]
[1730753982920,0.435059,67375.0,67374.0,1.73561866]
[1730753983127,0.3608,67381.0,67374.0,1.8001876]
[1730753983320,0.00112001,67389.0,67388.0,0.074243]
[1730753983526,0.374244,67389.0,67388.0,0.07386704]
[1730753983723,0.374244,67389.0,67387.0,0.07386634]
[1730753983724,0.735044,67389.0,67387.0,0.07386634]
[1730753984025,0.735044,67389.0,67388.0,1.5590976]
[1730753984252,0.148471,67397.0,67388.0,1.5590976]
[1730753984253,0.0035,67401.0,67400.0,0.074232]
[1730753984437,0.008,67410.0,67400.0,0.074232]
[1730753984438,0.074201,67428.0,67413.0,0.074217]
[1730753984728,0.0742,67429.0,67421.0,0.074208]
[1730753984930,0.074193,67436.0,67427.0,0.07382806]
[1730753985130,0.074193,67436.0,67435.0,0.25170354]
[1730753985323,0.3,67436.0,67435.0,0.19265079]
[1730753985522,0.3,67436.0,67435.0,0.25164791]
[1730753985830,0.3,67436.0,67435.0,0.2516475]
[1730753986027,0.3,67436.0,67435.0,0.19265079]
[1730753986330,0.374192,67436.0,67435.0,0.19265079]
[1730753986531,1.179873,67436.0,67428.0,0.04422022]
[1730753986725,0.7958,67429.0,67428.0,0.04422321]
[1730753987027,0.074202,67427.0,67426.0,0.04422613]
[1730753987231,0.374202,67427.0,67426.0,0.04422613]
[1730753987423,0.374202,67427.0,67416.0,0.14804206]
[1730753987424,0.074203,67426.0,67412.0,0.26686879]
[1730753987619,0.44492,67427.0,67415.0,0.3608]
[1730753987620,0.12083992,67427.0,67415.0,0.3608]
[1730753987828,0.074214,67416.0,67415.0,0.3608]
[1730753988118,0.3608,67416.0,67403.0,0.19265079]
[1730753988320,0.48051991,67416.0,67402.0,0.074229]
[1730753988517,0.074216,67415.0,67402.0,0.074229]
[1730753988723,0.032,67415.0,67406.0,0.074224]
[1730753988920,0.15171991,67415.0,67406.0,0.074224]
[1730753989127,0.15171991,67415.0,67399.0,0.00222526]
[1730753989128,0.074232,67400.0,67399.0,0.00222526]
[1730753989326,0.22219774,67414.0,67401.0,0.07423]
[1730753989327,0.435018,67413.0,67401.0,0.07423]
[1730753989625,0.435018,67413.0,67399.0,0.00222526]
[1730753989626,0.3608,67407.0,67399.0,0.00222526]
[1730753989826,0.07423,67402.0,67399.0,0.00222526]
[1730753990219,0.003,67400.0,67399.0,0.07645826]
[1730753990425,0.003,67400.0,67398.0,0.074233]
[1730753990631,0.074233,67399.0,67396.0,0.3608]
[1730753990824,0.003,67400.0,67398.0,0.074233]
[1730753991119,0.074234,67398.0,67396.0,0.3608]
[1730753991318,0.074233,67399.0,67390.0,0.3608]
[1730753991523,0.074243,67390.0,67381.0,0.19265079]
[1730753991731,0.074237,67395.0,67391.0,0.074241]
[1730753991922,0.11971991,67400.0,67396.0,0.004]
[1730753992138,0.074235,67397.0,67396.0,0.004]
[1730753992326,0.19395491,67397.0,67396.0,0.004]
[1730753993824,0.19695491,67397.0,67387.0,0.19265079]
[1730753994029,0.19695491,67397.0,67384.0,0.435049]
[1730753994232,0.074245,67388.0,67384.0,0.435049]
[1730753994532,0.074245,67388.0,67385.0,0.074248]
[1730753994834,0.3608,67395.0,67385.0,0.074248]
[1730753995029,0.074246,67387.0,67385.0,0.074248]
[1730753995327,0.074247,67386.0,67384.0,0.3608]
[1730753995630,0.48051991,67395.0,67379.0,0.19265079]
[1730753995832,0.3608,67387.0,67379.0,0.19265079]
[1730753996128,0.12095991,67395.0,67383.0,0.3608]
[1730753996331,0.12095991,67395.0,67381.0,0.19265079]
[1730753996332,0.074241,67392.0,67384.0,0.3608]
[1730753996528,0.074241,67392.0,67382.0,0.074251]
[1730753996723,0.11971991,67392.0,67388.0,0.074244]
[1730753996921,0.074243,67390.0,67388.0,0.074244]
[1730753997231,0.074244,67389.0,67388.0,0.074244]
[1730753997431,0.11971991,67392.0,67385.0,0.001]
[1730753997432,0.074247,67386.0,67385.0,0.001]
[1730753997831,0.19396691,67386.0,67385.0,0.001]
[1730753998028,0.19265079,67395.0,67385.0,0.001]
[1730753998029,0.19265079,67402.0,67385.0,0.074248]
[1730753998326,0.074238,67394.0,67393.0,0.3608]
[1730753998536,0.15241991,67396.0,67386.0,0.074246]
[1730753998838,0.074246,67387.0,67386.0,0.074246]
[1730753999028,0.15241991,67396.0,67385.0,0.006]
[1730753999029,0.074247,67386.0,67385.0,0.006]
[1730753999530,0.074243,67390.0,67389.0,0.074244]
[1730753999730,0.074243,67390.0,67389.0,0.435044]
[1730754000239,0.3608,67401.0,67389.0,0.3608]
[1730754000424,0.19265079,67395.0,67389.0,0.3608]
[1730754000626,0.48171992,67401.0,67385.0,0.006]
[1730754000830,0.19265079,67391.0,67385.0,0.006]
[1730754001132,0.12083992,67401.0,67381.0,0.55345079]
[1730754001432,0.002,67396.0,67391.0,0.3608]
[1730754002032,0.3608,67402.0,67391.0,0.3608]
[1730754002228,0.48051991,67402.0,67391.0,0.3608]
[1730754002740,0.001,67396.0,67391.0,0.3608]
[1730754003236,0.3608,67402.0,67391.0,0.3608]
[1730754003437,0.48051991,67402.0,67391.0,0.3608]
[1730754003638,0.002,67396.0,67391.0,0.3608]
[1730754004433,0.3678,67402.0,67391.0,0.3608]
[1730754004735,0.02868699,67401.0,67391.0,0.3618]
[1730754004942,0.02868699,67400.0,67391.0,0.3618]
[1730754005137,0.48751991,67402.0,67391.0,0.3618]
[1730754005345,0.001,67396.0,67391.0,0.3608]
[1730754005539,0.003,67396.0,67391.0,0.3608]
[1730754006039,0.006,67401.0,67394.0,0.19265079]
[1730754006249,0.006,67401.0,67400.0,0.3608]
[1730754006432,0.0327,67417.0,67400.0,0.3608]
[1730754006749,0.02873649,67416.0,67411.0,0.3608]
[1730754006945,0.02873649,67415.0,67411.0,0.3608]
[1730754007145,0.02873649,67414.0,67411.0,0.3608]
[1730754007442,0.02873649,67413.0,67411.0,0.3608]
[1730754007645,0.02873649,67412.0,67411.0,0.3608]
[1730754007849,0.22134971,67412.0,67400.0,0.3608]
[1730754008139,0.06505983,67411.0,67406.0,0.3608]
[1730754008339,0.02869892,67410.0,67406.0,0.3608]
[1730754008541,0.02869892,67409.0,67406.0,0.3608]
[1730754008733,0.02869892,67408.0,67406.0,0.3608]
[1730754008929,0.02869892,67407.0,67406.0,0.3608]
[1730754009136,0.02869892,67407.0,67400.0,0.001]
[1730754009340,0.02869892,67406.0,67400.0,0.001]
[1730754009642,0.02868449,67405.0,67400.0,0.001]
[1730754009829,0.11971991,67407.0,67400.0,0.001]
[1730754009830,0.02868449,67404.0,67400.0,0.001]
[1730754010032,0.02868449,67403.0,67400.0,0.001]
[1730754010236,0.02868449,67402.0,67400.0,0.001]
[1730754010447,0.02868449,67401.0,67400.0,0.001]
[1730754010740,0.13171991,67407.0,67406.0,0.001]
[1730754011040,0.16040244,67407.0,67406.0,0.001]
[1730754011342,0.19676515,67407.0,67406.0,0.001]
[1730754011642,0.19676515,67407.0,67399.0,0.3608]
[1730754011643,0.006,67401.0,67400.0,0.001]
[1730754012233,0.03468253,67401.0,67400.0,0.001]
[1730754012433,0.024,67407.0,67406.0,0.001]
[1730754012636,0.13171991,67407.0,67406.0,0.001]
[1730754013846,0.11971991,67407.0,67388.0,0.19265079]
[1730754014042,0.006,67401.0,67400.0,0.001]
[1730754014544,0.12571991,67401.0,67400.0,0.001]
[1730754014740,0.11971991,67401.0,67399.0,0.3608]
[1730754015145,0.012,67407.0,67399.0,0.80592]
[1730754015338,0.006,67401.0,67399.0,0.3608]
[1730754015842,0.006,67401.0,67400.0,0.001]
[1730754016047,0.012,67401.0,67400.0,0.001]
[1730754017249,0.012,67401.0,67400.0,0.19265079]
[1730754017550,0.012,67401.0,67400.0,0.22535079]
[1730754017941,0.006,67401.0,67400.0,0.67147079]
[1730754018247,0.012,67401.0,67400.0,0.22635079]
[1730754019133,0.012,67401.0,67400.0,0.001]
[1730754019339,0.16308083,67401.0,67400.0,0.001]
[1730754019543,0.19176351,67401.0,67400.0,0.001]
[1730754019746,0.0720436,67401.0,67400.0,0.001]
[1730754019948,0.03568268,67401.0,67400.0,0.44612]
[1730754020142,0.02867835,67401.0,67400.0,0.44612]
[1730754020449,0.0327,67417.0,67400.0,0.63877079]
[1730754020639,0.0327,67417.0,67416.0,0.3608]
[1730754020945,0.001,67401.0,67400.0,0.001]
[1730754021137,0.001,67401.0,67399.0,0.3608]
[1730754021138,0.03736142,67401.0,67399.0,0.3608]
[1730754021335,0.03636142,67400.0,67399.0,0.3608]
[1730754021954,0.15608358,67400.0,67399.0,0.3608]
[1730754022149,0.18948358,67400.0,67399.0,0.3608]
[1730754023151,0.18948358,67400.0,67399.0,0.3618]
[1730754023152,0.19448358,67400.0,67399.0,0.3618]
[1730754023748,0.19648358,67400.0,67399.0,0.3618]
[1730754024249,0.19448358,67400.0,67399.0,0.3618]
[1730754024451,0.19948358,67400.0,67399.0,0.3618]
[1730754024853,0.19448358,67400.0,67399.0,0.3618]
[1730754025053,0.16011991,67400.0,67399.0,0.3618]
[1730754025241,0.19648325,67400.0,67399.0,0.3618]
[1730754025436,0.19148325,67400.0,67399.0,0.3608]
[1730754025846,0.16108325,67400.0,67399.0,0.3608]
[1730754027139,0.15808325,67400.0,67399.0,0.3608]
[1730754027340,0.12371991,67400.0,67399.0,0.3608]
[1730754027757,0.12171991,67400.0,67399.0,0.3608]
[1730754027938,0.12171991,67400.0,67399.0,0.3618]
[1730754028139,0.12071991,67400.0,67399.0,0.3618]
[1730754028351,0.001,67400.0,67399.0,0.3608]
[1730754028547,0.002,67400.0,67399.0,0.3618]
[1730754029049,0.001,67400.0,67399.0,0.3658]
[1730754030248,0.074232,67400.0,67399.0,0.3648]
[1730754030561,0.075232,67400.0,67399.0,0.439033]
[1730754030940,0.075232,67400.0,67399.0,0.435033]
[1730754031852,0.075232,67400.0,67399.0,0.439033]
[1730754032056,0.075232,67400.0,67399.0,0.440033]
[1730754032850,0.001,67400.0,67399.0,0.440033]
[1730754033061,0.00222563,67419.0,67403.0,0.074228]
[1730754033350,0.0069,67423.0,67422.0,0.074205]
[1730754033351,0.074207,67423.0,67422.0,0.074205]
[1730754033758,0.0313,67427.0,67418.0,0.56340361]
[1730754033759,0.074211,67419.0,67418.0,0.56340361]
[1730754034761,0.088211,67419.0,67418.0,0.56340361]
[1730754035058,0.074211,67419.0,67418.0,0.56340361]
[1730754035352,0.002,67419.0,67418.0,0.57040361]
[1730754035557,0.074204,67426.0,67425.0,0.074203]
[1730754035753,0.074203,67426.0,67425.0,0.3608]
[1730754035953,0.074211,67420.0,67419.0,0.07421]
[1730754036153,0.074211,67420.0,67419.0,0.20260261]
[1730754036353,0.074211,67420.0,67419.0,0.56340261]
[1730754036563,0.074211,67420.0,67419.0,0.48919261]
[1730754036852,0.19393091,67420.0,67419.0,0.3608]
[1730754037049,0.19393091,67420.0,67419.0,0.12839261]
[1730754037252,0.3608,67433.0,67419.0,0.12839261]
[1730754037450,0.07421,67420.0,67419.0,0.077211]
[1730754037647,0.11971991,67433.0,67419.0,0.01338]
[1730754037850,0.11971991,67433.0,67421.0,0.12839261]
[1730754038054,0.001,67420.0,67419.0,0.37918]
[1730754038254,0.07521,67420.0,67419.0,0.37918]
[1730754038559,0.07521,67420.0,67419.0,0.3688]
[1730754038758,0.07521,67420.0,67419.0,0.443011]
[1730754039448,0.07421,67420.0,67419.0,0.435011]
[1730754039651,0.004,67420.0,67419.0,0.435011]
[1730754040155,0.003,67420.0,67419.0,0.440011]
[1730754040353,0.07721,67420.0,67419.0,0.3658]
[1730754040659,0.07721,67420.0,67419.0,0.3608]
[1730754040859,0.07821,67420.0,67419.0,0.007]
[1730754041050,0.07521,67420.0,67419.0,0.012]
[1730754041252,0.07421,67420.0,67419.0,0.005]
[1730754041452,0.10293577,67420.0,67419.0,0.008]
[1730754041651,0.10293577,67420.0,67419.0,0.082211]
[1730754041853,0.06507454,67420.0,67419.0,0.079211]
[1730754042061,0.02872577,67420.0,67419.0,0.079211]
[1730754042864,0.02972577,67420.0,67419.0,0.084211]
[1730754043451,0.02872577,67420.0,67419.0,0.076211]
[1730754043653,0.0307,67435.0,67433.0,0.074195]
[1730754043855,0.22461291,67435.0,67434.0,0.12839261]
[1730754044054,0.26095795,67435.0,67434.0,0.12839261]
[1730754044255,0.03634612,67435.0,67434.0,0.48919261]
[1730754044565,0.00222511,67437.0,67436.0,0.074192]
[1730754046460,0.00822511,67437.0,67436.0,0.075192]
[1730754046657,0.00822511,67437.0,67436.0,0.076192]
[1730754046658,0.01422511,67437.0,67436.0,0.076192]
[1730754047367,0.012,67437.0,67436.0,0.076192]
[1730754047767,0.0304,67447.0,67436.0,0.076192]
[1730754047768,0.074182,67445.0,67444.0,0.074181]
[1730754047965,0.074182,67445.0,67444.0,0.56337361]
[1730754048267,0.19390191,67445.0,67444.0,0.56337361]
[1730754048464,0.11971991,67445.0,67444.0,0.56337361]